bitfinex-derivatives/quotes_BTCF0:USTF0_20251002
["timestamp","ask_amount","ask_price","bid_price","bid_amount"]
[1759373817059,0.7149818,118770.0,118760.0,0.37762]
[1759373817270,1.4910218,118770.0,118760.0,0.39934]
[1759373817766,1.4910218,118770.0,118760.0,0.37762]
[1759373818065,1.4910218,118770.0,118760.0,0.39934]
[1759373818265,0.69442483,118770.0,118760.0,0.39934]
[1759373818459,1.47038483,118770.0,118760.0,0.39934]
[1759373818862,1.47038483,118770.0,118760.0,0.37762]
[1759373819060,0.69442483,118770.0,118760.0,0.39934]
[1759373819261,1.47038483,118770.0,118760.0,0.39934]
[1759373822364,1.49094488,118770.0,118760.0,0.39934]
[1759373825368,0.09461236,118770.0,118760.0,0.39934]
[1759373825668,1.49078488,118770.0,118760.0,0.39934]
[1759373826272,1.14613554,118770.0,118760.0,0.39934]
[1759373828171,0.37033554,118770.0,118760.0,0.39934]
[1759373828374,1.14609554,118770.0,118760.0,0.39934]
[1759373833477,1.12553549,118770.0,118760.0,0.39934]
[1759373834674,0.34977549,118770.0,118760.0,0.39934]
[1759373834879,1.12541549,118770.0,118760.0,0.39934]
[1759373837272,1.14598421,118770.0,118760.0,0.39934]
[1759373837577,1.12541549,118770.0,118760.0,0.39934]
[1759373837765,1.14598421,118770.0,118760.0,0.39934]
[1759373843685,1.14603421,118770.0,118760.0,0.39934]
[1759373847495,1.12546549,118770.0,118760.0,0.39934]
[1759373848690,1.14600602,118770.0,118760.0,0.39934]
[1759373851697,1.14600602,118770.0,118760.0,0.37762]
[1759373852095,1.14600602,118770.0,118760.0,0.3995]
[1759373852900,1.14600602,118770.0,118760.0,0.37762]
[1759373853697,1.4217292,118770.0,118760.0,0.37762]
[1759373854294,1.14600602,118770.0,118760.0,0.37762]
[1759373855502,1.4217292,118770.0,118760.0,0.3638]
[1759373859805,0.0850108,118750.0,118740.0,0.00773]
[1759373860004,1.11202362,118750.0,118740.0,0.08107564]
[1759373861509,1.11702362,118750.0,118740.0,0.08107564]
[1759373861905,1.13802362,118750.0,118740.0,0.08207564]
[1759373862106,1.14373362,118750.0,118740.0,0.06160564]
[1759373862604,1.11773362,118750.0,118740.0,0.06160564]
[1759373862808,1.13673362,118750.0,118740.0,0.06160564]
[1759373863507,1.13673362,118750.0,118740.0,0.08348564]
[1759373864004,1.13673362,118750.0,118740.0,0.06160564]
[1759373864204,1.13673362,118750.0,118740.0,0.001]
[1759373865511,0.36165362,118750.0,118740.0,0.001]
[1759373865706,0.08593044,118750.0,118740.0,0.001]
[1759373865908,1.13661362,118750.0,118740.0,0.001]
[1759373866108,0.36165362,118750.0,118740.0,0.001]
[1759373866402,0.35594362,118750.0,118740.0,0.03562]
[1759373866708,1.13090362,118750.0,118740.0,0.03562]
[1759373868603,1.13090362,118750.0,118740.0,0.02288]
[1759373868910,1.13661362,118750.0,118740.0,0.02288]
[1759373869410,1.13090362,118750.0,118740.0,0.02288]
[1759373869608,1.13086362,118750.0,118740.0,0.43593]
[1759373870212,0.35594362,118750.0,118740.0,0.43593]
[1759373870509,1.05230362,118750.0,118740.0,0.49653564]
[1759373870709,1.05230362,118750.0,118740.0,0.43593]
[1759373871005,0.35594362,118750.0,118740.0,0.43593]
[1759373871210,0.34499854,118750.0,118740.0,0.49653564]
[1759373871606,0.95231854,118750.0,118740.0,0.49653564]
[1759373871808,1.11987854,118750.0,118740.0,0.49653564]
[1759373872006,0.34499854,118750.0,118740.0,0.49653564]
[1759373872311,0.67655536,118750.0,118740.0,0.49644989]
[1759373872611,0.06927536,118750.0,118740.0,0.43593]
[1759373872911,0.67271536,118750.0,118740.0,0.49644976]
[1759373873109,0.84411536,118750.0,118740.0,0.49644976]
[1759373874114,0.84411536,118750.0,118740.0,0.43593]
[1759373874614,0.84411536,118750.0,118740.0,0.5201079]
[1759373876914,0.06927536,118750.0,118740.0,0.5201079]
[1759373877115,0.69895536,118750.0,118740.0,0.5201079]
[1759373877415,0.06927536,118750.0,118740.0,0.5201079]
[1759373877609,0.64115536,118750.0,118740.0,0.5201079]
[1759373878114,0.06927536,118750.0,118740.0,0.5201079]
[1759373878316,0.64111536,118750.0,118740.0,0.5201079]
[1759373878517,0.64111536,118750.0,118740.0,0.59553303]
[1759373879311,0.64111536,118750.0,118740.0,0.5201079]
[1759373881615,0.64111536,118750.0,118740.0,0.58062956]
[1759373883816,0.66297536,118750.0,118740.0,0.58062956]
[1759373884217,0.64111536,118750.0,118740.0,0.58062956]
[1759373884414,0.66297536,118750.0,118740.0,0.58062956]
[1759373884610,0.66297536,118750.0,118740.0,0.5201079]
[1759373884810,0.64111536,118750.0,118740.0,0.58062778]
[1759373885507,0.64111536,118750.0,118740.0,0.5201079]
[1759373887817,0.66297536,118750.0,118740.0,0.5201079]
[1759373888417,0.97315071,118750.0,118740.0,0.83028325]
[1759373888815,0.97315071,118750.0,118740.0,0.89079494]
[1759373891019,0.66297536,118750.0,118740.0,0.89079494]
[1759373891209,0.97315071,118750.0,118740.0,0.89079494]
[1759373891415,0.66297536,118750.0,118740.0,0.89079494]
[1759373891716,0.97315071,118750.0,118740.0,0.89079494]
[1759373892415,0.66297536,118750.0,118740.0,0.89079494]
[1759373892614,0.97315071,118750.0,118740.0,0.89079494]
[1759373893715,0.019,118750.0,118740.0,0.89079494]
[1759373893910,0.39434025,118760.0,118750.0,0.1194208]
[1759373894114,0.39434025,118760.0,118750.0,0.49008741]
[1759373895421,0.0851649,118760.0,118750.0,0.51908741]
[1759373895620,0.39534025,118760.0,118750.0,0.51908741]
[1759373895823,0.0851649,118760.0,118750.0,0.51908741]
[1759373896119,1.16878655,118770.0,118760.0,0.1194137]
[1759373896418,1.16878655,118770.0,118760.0,0.17990322]
[1759373896618,1.16878655,118770.0,118760.0,0.1194137]
[1759373896823,1.16878655,118770.0,118760.0,0.17988505]
[1759373897024,1.16878655,118770.0,118760.0,0.17988459]
[1759373897421,0.39438655,118770.0,118760.0,0.49005994]
[1759373897626,1.16870655,118770.0,118760.0,0.49005994]
[1759373898111,1.16870655,118770.0,118760.0,0.50905994]
[1759373898314,1.16866655,118770.0,118760.0,0.50905994]
[1759373898517,1.16866655,118770.0,118760.0,0.49005994]
[1759373898716,1.16966655,118770.0,118760.0,0.49005994]
[1759373899923,1.19249655,118770.0,118760.0,0.40589624]
[1759373900113,1.19249655,118770.0,118760.0,0.09572089]
[1759373900319,0.8823212,118770.0,118760.0,0.40589624]
[1759373900521,1.19249655,118770.0,118760.0,0.09572089]
[1759373902524,1.16966655,118770.0,118760.0,0.49005994]
[1759373903030,1.16950655,118770.0,118760.0,0.49004383]
[1759373904425,0.0852112,118770.0,118760.0,0.49004383]
[1759373904623,1.16946655,118770.0,118760.0,0.49004383]
[1759373905630,0.8592912,118770.0,118760.0,0.49004383]
[1759373905826,0.46302839,118780.0,118770.0,0.1207266]
[1759373906130,1.16837095,118780.0,118770.0,0.49133629]
[1759373906333,0.8581956,118780.0,118770.0,0.49133629]
[1759373906638,1.16837095,118780.0,118770.0,0.49133629]
[1759373906925,0.8581956,118780.0,118770.0,0.49133629]
[1759373907131,0.8581956,118780.0,118770.0,0.50632708]
[1759373907524,0.8581956,118780.0,118770.0,0.43090195]
[1759373907931,0.77404,118780.0,118770.0,0.43990195]
[1759373908626,0.40219654,118790.0,118780.0,0.1207196]
[1759373908833,1.17615654,118790.0,118780.0,0.49126897]
[1759373909827,1.17615654,118790.0,118780.0,0.51726897]
[1759373910730,1.17615654,118790.0,118780.0,0.49126897]
[1759373910731,0.78183419,118790.0,118780.0,0.49126897]
[1759373910932,0.86597669,118790.0,118780.0,0.49726897]
[1759373913933,0.86597669,118790.0,118780.0,0.18709362]
[1759373914235,0.86597669,118790.0,118780.0,0.49726897]
[1759373914531,0.86597669,118790.0,118780.0,0.43689495]
[1759373915133,0.77396,118790.0,118780.0,0.98544773]
[1759373915725,1.10422102,118800.0,118790.0,0.1207125]
[1759373915930,0.33050102,118800.0,118790.0,0.49117526]
[1759373916131,0.33050102,118800.0,118790.0,0.58425692]
[1759373916935,0.33050102,118800.0,118790.0,0.59425692]
[1759373917231,0.34050102,118800.0,118790.0,0.99425692]
[1759373917430,0.30550102,118800.0,118790.0,1.00939464]
[1759373918333,0.30550102,118800.0,118790.0,0.93396951]
[1759373919636,0.30550102,118800.0,118790.0,0.5941734]
[1759373920134,0.10366102,118800.0,118790.0,1.38852737]
[1759373920330,0.06866102,118800.0,118790.0,2.16208737]
[1759373920530,0.06866102,118800.0,118790.0,1.76208737]
[1759373920731,0.06866102,118800.0,118790.0,1.45191202]
[1759373921235,0.05866102,118800.0,118790.0,1.44191202]
[1759373921436,0.06466102,118800.0,118790.0,1.44191202]
[1759373921637,0.10076102,118800.0,118790.0,0.65459202]
[1759373921836,0.10076102,118800.0,118790.0,1.42811202]
[1759373922032,0.08131102,118800.0,118790.0,1.42811202]
[1759373922234,0.06866102,118800.0,118790.0,1.42811202]
[1759373924335,0.06866102,118800.0,118790.0,0.65459202]
[1759373924541,0.06866102,118800.0,118790.0,1.42803202]
[1759373925836,0.09131102,118800.0,118790.0,0.65459202]
[1759373926139,0.10476102,118800.0,118790.0,1.3438134]
[1759373926340,0.09131102,118800.0,118790.0,1.3438134]
[1759373926640,0.06866102,118800.0,118790.0,1.3438134]
[1759373926840,0.06866102,118800.0,118790.0,1.3437734]
[1759373928536,0.49935197,118800.0,118790.0,0.5704134]
[1759373928842,0.48925272,118800.0,118790.0,1.3436934]
[1759373929340,0.47552272,118800.0,118790.0,1.3511134]
[1759373930042,0.47552272,118800.0,118790.0,0.5778334]
[1759373930243,0.47552272,118800.0,118790.0,1.3510734]
[1759373931040,0.47552272,118800.0,118790.0,0.5778334]
[1759373931239,0.47552272,118800.0,118790.0,1.3510734]
[1759373932036,0.16534737,118800.0,118790.0,0.5778334]
[1759373932235,0.47552272,118800.0,118790.0,1.3510334]
[1759373933038,0.47552272,118800.0,118790.0,1.03343805]
[1759373933340,0.48925272,118800.0,118790.0,0.17609555]
[1759373933543,0.48925272,118800.0,118790.0,0.02281]
[1759373935351,0.48925272,118800.0,118790.0,0.08301389]
[1759373935941,0.48925272,118800.0,118790.0,0.16715659]
[1759373936351,0.48925272,118800.0,118790.0,0.08301389]
[1759373936544,0.48925272,118800.0,118790.0,0.16715659]
[1759373939649,0.47552272,118800.0,118790.0,0.48475194]
[1759373940850,0.39138712,118800.0,118790.0,0.48475194]
[1759373941051,0.05856177,118800.0,118790.0,0.48475194]
[1759373942545,0.08172177,118800.0,118790.0,0.48475194]
[1759373942947,0.05856177,118800.0,118790.0,0.48475194]
[1759373943152,0.04846202,118800.0,118790.0,1.3082132]
[1759373943549,0.04846202,118800.0,118790.0,1.41382263]
[1759373944855,0.04846202,118800.0,118790.0,0.79347193]
[1759373945054,0.04846202,118800.0,118790.0,1.41382263]
[1759373945261,0.04846202,118800.0,118790.0,1.87656728]
[1759373945554,0.03478673,118800.0,118790.0,1.87656728]
[1759373947860,0.03478673,118800.0,118790.0,2.18674263]
[1759373948060,0.03478673,118800.0,118790.0,1.41382263]
[1759373948256,0.03478673,118800.0,118790.0,1.84173374]
[1759373949564,0.03478673,118800.0,118790.0,1.56635193]
[1759373949862,0.03478673,118800.0,118790.0,1.84173374]
[1759373951564,0.03478673,118800.0,118790.0,1.85282279]
[1759373952367,0.03478673,118800.0,118790.0,1.74721336]
[1759373952667,0.03478673,118800.0,118790.0,1.73612431]
[1759373953067,0.02468808,118800.0,118790.0,1.73612431]
[1759373955368,0.02468808,118800.0,118790.0,1.73596431]
[1759373955672,0.0110126,118800.0,118790.0,1.73596431]
[1759373956262,0.0110126,118800.0,118790.0,0.96324431]
[1759373956463,0.0110126,118800.0,118790.0,1.73592431]
[1759373956666,0.0110126,118800.0,118790.0,1.84153374]
[1759373957069,0.0110126,118800.0,118790.0,1.73592431]
[1759373960274,0.0110126,118800.0,118790.0,1.84153374]
[1759373961573,0.0110126,118800.0,118790.0,1.84141374]
[1759373961768,0.0110126,118800.0,118790.0,1.06885374]
[1759373961970,0.0110126,118800.0,118790.0,1.84141374]
[1759373963072,0.00091402,118800.0,118790.0,1.84141374]
[1759373963270,0.00091402,118800.0,118790.0,1.06885374]
[1759373963470,0.00091402,118800.0,118790.0,1.84141374]
[1759373965677,0.00091402,118800.0,118790.0,1.84137374]
[1759373965874,0.00091402,118800.0,118790.0,1.73576431]
[1759373967772,0.00091402,118800.0,118790.0,1.81122312]
[1759373967977,0.00091402,118800.0,118790.0,1.81114312]
[1759373968571,0.00091402,118800.0,118790.0,1.73568431]
[1759373972276,0.00091402,118800.0,118790.0,1.73556431]
[1759373973278,0.00091402,118800.0,118790.0,1.81111533]
[1759373977080,0.00091402,118800.0,118790.0,1.53573352]
[1759373977275,0.00091402,118800.0,118790.0,1.81111533]
[1759373978080,0.00091402,118800.0,118790.0,1.03879533]
[1759373978277,0.10743942,118800.0,118790.0,0.75599322]
[1759373978474,0.10743942,118800.0,118790.0,0.1876722]
[1759373978475,0.12088942,118800.0,118790.0,0.1876722]
[1759373978669,0.12088942,118800.0,118790.0,0.96846358]
[1759373978873,0.10743942,118800.0,118790.0,0.96846358]
[1759373979078,0.02330402,118800.0,118790.0,0.97588358]
[1759373979280,0.02330402,118800.0,118790.0,1.25126539]
[1759373979674,0.02330402,118800.0,118790.0,0.97588358]
[1759373980183,0.10743932,118800.0,118790.0,0.97588358]
[1759373980381,0.10743932,118800.0,118790.0,0.20368358]
[1759373980580,0.10743932,118800.0,118790.0,0.97588358]
[1759373981777,0.37249544,118800.0,118790.0,0.11212118]
[1759373981983,0.37249544,118800.0,118790.0,0.30187301]
[1759373981984,0.39488544,118800.0,118790.0,0.30187301]
[1759373982773,0.39488544,118800.0,118790.0,0.19626358]
[1759373983178,0.39488544,118800.0,118790.0,0.20974358]
[1759373984285,0.39488544,118800.0,118790.0,0.19626358]
[1759373984880,0.39488544,118800.0,118790.0,0.20974358]
[1759373985289,0.39488544,118800.0,118790.0,0.11212118]
[1759373985588,0.79488544,118800.0,118790.0,0.1876971]
[1759373985779,0.79488544,118800.0,118790.0,0.09838592]
[1759373986889,0.79488544,118800.0,118790.0,0.07557592]
[1759373987289,0.79488544,118800.0,118790.0,0.09808592]
[1759373988285,1.56704544,118800.0,118790.0,0.09808592]
[1759373988485,1.56704544,118800.0,118790.0,0.02251]
[1759373989785,0.79488544,118800.0,118790.0,0.02251]
[1759373990283,1.56700544,118800.0,118790.0,0.02251]
[1759373991889,1.56700544,118800.0,118790.0,0.08291516]
[1759373992189,1.56700544,118800.0,118790.0,0.06040516]
[1759373992387,1.56700544,118800.0,118790.0,0.08239516]
[1759373993482,1.29162363,118800.0,118790.0,0.08239516]
[1759373993683,1.56700544,118800.0,118790.0,0.08239516]
[1759373993884,0.79488544,118800.0,118790.0,0.08239516]
[1759373994085,1.56700544,118800.0,118790.0,0.08239516]
[1759373995693,0.79488544,118800.0,118790.0,0.1061324]
[1759373995996,1.56700544,118800.0,118790.0,0.1061324]
[1759373996598,0.79488544,118800.0,118790.0,0.1061324]
[1759373996798,1.56696544,118800.0,118790.0,0.1061324]
[1759373997495,0.79488544,118800.0,118790.0,0.1061324]
[1759373997701,1.29158363,118800.0,118790.0,0.1061324]
[1759373998000,1.56696544,118800.0,118790.0,0.02199]
[1759374000202,1.56696544,118800.0,118790.0,0.1061324]
[1759374000799,1.29158363,118800.0,118790.0,0.1061324]
[1759374000995,0.79488544,118800.0,118790.0,0.1061324]
[1759374001196,1.56696544,118800.0,118790.0,0.1061324]
[1759374001896,1.56696544,118800.0,118790.0,0.02199]
[1759374003008,1.56696544,118800.0,118790.0,0.08239516]
[1759374004607,0.79488544,118800.0,118790.0,0.16653756]
[1759374004906,1.56743711,118800.0,118790.0,0.16653756]
[1759374005902,0.71122181,118800.0,118790.0,0.16653756]
[1759374006100,0.71122181,118800.0,118790.0,0.45526937]
[1759374006101,0.02239,118800.0,118790.0,0.45526937]
[1759374006404,0.79447,118800.0,118790.0,0.39486421]
[1759374006706,0.79447,118800.0,118790.0,0.19505832]
[1759374007006,0.02239,118800.0,118790.0,0.19505832]
[1759374007204,0.79447,118800.0,118790.0,0.19505832]
[1759374008711,0.79383284,118800.0,118790.0,0.19505832]
[1759374008913,0.87796804,118800.0,118790.0,0.19505832]
[1759374009908,0.79383284,118800.0,118790.0,0.19505832]
[1759374010311,1.10376087,118800.0,118790.0,0.50498635]
[1759374012703,1.20111617,118800.0,118790.0,0.18170832]
[1759374013304,1.9110442,118800.0,118790.0,0.07557592]
[1759374013913,1.29118814,118800.0,118790.0,0.07557592]
[1759374014114,0.1072823,118790.0,118780.0,0.49164255]
[1759374014315,0.43066033,118790.0,118780.0,0.18171452]
[1759374014516,0.1207394,118780.0,118770.0,0.10560943]
[1759374014816,0.1207394,118780.0,118760.0,0.21175903]
[1759374014817,0.03659,118770.0,118760.0,0.21175903]
[1759374015019,0.34651803,118770.0,118760.0,0.52168706]
[1759374015212,0.34651803,118770.0,118760.0,0.53503706]
[1759374015409,0.33306803,118770.0,118760.0,0.50504205]
[1759374016414,0.33306803,118770.0,118760.0,0.51104205]
[1759374017021,0.34706803,118770.0,118760.0,0.50504205]
[1759374017224,0.34706803,118770.0,118760.0,0.42942763]
[1759374018326,0.03714,118770.0,118760.0,0.42942763]
[1759374018525,0.34706803,118770.0,118760.0,0.42942763]
[1759374018727,0.34706803,118770.0,118760.0,0.50498239]
[1759374020228,0.34706803,118770.0,118760.0,0.42942763]
[1759374023031,0.32328488,118770.0,118760.0,0.50498239]
[1759374023232,0.34635488,118770.0,118760.0,0.50498239]
[1759374026434,0.43051128,118770.0,118760.0,0.11089476]
[1759374026636,0.43051128,118770.0,118760.0,0.25545168]
[1759374026934,0.43051128,118770.0,118760.0,0.17989692]
[1759374029038,0.41715443,118770.0,118760.0,0.17989692]
[1759374029238,0.42415443,118770.0,118760.0,0.19289692]
[1759374029837,0.41715443,118770.0,118760.0,0.18989692]
[1759374030041,0.42715443,118770.0,118760.0,0.18989692]
[1759374031136,0.73708246,118770.0,118760.0,0.18989692]
[1759374031942,1.19935443,118770.0,118760.0,0.18989692]
[1759374032141,0.42715443,118770.0,118760.0,0.18989692]
[1759374032441,1.19935443,118770.0,118760.0,0.18989692]
[1759374033142,1.1892513,118770.0,118760.0,0.18989692]
[1759374033545,0.10712327,118770.0,118760.0,0.18989692]
[1759374033744,0.8126113,118770.0,118760.0,0.18989692]
[1759374036844,0.8126113,118770.0,118760.0,0.49982495]
[1759374037445,0.8126113,118770.0,118760.0,0.18989692]
[1759374039942,0.8126113,118770.0,118760.0,0.10573342]
[1759374040148,0.8126113,118770.0,118760.0,0.18989692]
[1759374040446,1.1050949,118770.0,118760.0,0.43943153]
[1759374040647,1.1050949,118770.0,118760.0,0.49982495]
[1759374041445,1.1892513,118770.0,118760.0,0.18989692]
[1759374041645,1.1892513,118770.0,118760.0,0.49982495]
[1759374043847,1.1892513,118770.0,118760.0,0.18989692]
[1759374044050,1.1892513,118770.0,118760.0,0.49982495]
[1759374044351,1.1892513,118770.0,118760.0,0.43943153]
[1759374044553,1.1892513,118770.0,118760.0,0.1295035]
[1759374045253,1.1892513,118770.0,118760.0,0.19003596]
[1759374045956,1.1892513,118770.0,118760.0,0.49996399]
[1759374047044,1.17723805,118770.0,118760.0,0.51498629]
[1759374049255,1.17723805,118770.0,118760.0,0.43943153]
[1759374049656,1.17723805,118770.0,118760.0,0.51510371]
[1759374052757,1.17723805,118770.0,118760.0,0.49998023]
[1759374054757,1.17723805,118770.0,118760.0,0.43943153]
[1759374055258,0.01177,118770.0,118760.0,0.43943153]
[1759374055460,0.07848754,118780.0,118770.0,0.1198163]
[1759374055656,0.30403754,118780.0,118770.0,0.42974433]
[1759374055954,0.31580754,118780.0,118770.0,0.42974433]
[1759374056157,1.16049557,118780.0,118770.0,0.1198163]
[1759374056352,1.14872557,118780.0,118770.0,0.42974433]
[1759374056858,1.16949557,118780.0,118770.0,0.51744236]
[1759374057653,1.16049557,118780.0,118770.0,0.51744236]
[1759374057858,1.15239408,118780.0,118770.0,0.52344236]
[1759374058658,1.23654328,118780.0,118770.0,0.12935803]
[1759374058856,1.23654328,118780.0,118770.0,0.43928606]
[1759374059260,0.07038605,118780.0,118770.0,0.52344236]
[1759374059459,0.002,118780.0,118770.0,0.85062586]
[1759374059764,0.002,118780.0,118770.0,1.34215242]
[1759374061063,0.002,118780.0,118770.0,1.26645439]
[1759374061265,0.002,118780.0,118770.0,1.35064719]
[1759374061463,0.002,118780.0,118770.0,1.45654827]
[1759374061959,0.002,118780.0,118770.0,0.66242744]
[1759374062166,0.01377,118780.0,118770.0,0.97235547]
[1759374062765,0.01377,118780.0,118770.0,0.35249941]
[1759374062966,0.01377,118780.0,118770.0,0.97235547]
[1759374063266,0.002,118780.0,118770.0,0.97235547]
[1759374064765,0.002,118780.0,118770.0,0.66242744]
[1759374065453,0.002,118780.0,118770.0,0.55652636]
[1759374066364,0.0979193,118780.0,118770.0,0.24659833]
[1759374066560,0.40784733,118780.0,118770.0,0.4649998]
[1759374067062,0.0979193,118780.0,118770.0,0.4649998]
[1759374067462,0.40784733,118780.0,118770.0,0.4649998]
[1759374067866,0.39774597,118780.0,118770.0,0.4649998]
[1759374069265,0.31359667,118780.0,118770.0,0.4649998]
[1759374069465,0.31359667,118780.0,118770.0,0.15507177]
[1759374069759,0.06730532,118790.0,118780.0,0.1198093]
[1759374069961,0.39406743,118800.0,118780.0,0.50530504]
[1759374070169,0.94986743,118800.0,118790.0,0.40603991]
[1759374070563,0.94986743,118800.0,118790.0,0.49018211]
[1759374070762,0.39406743,118800.0,118790.0,0.49018211]
[1759374071067,1.16594743,118800.0,118790.0,0.49018211]
[1759374072267,0.8560194,118800.0,118790.0,0.09611188]
[1759374072668,0.8560194,118800.0,118790.0,0.10911188]
[1759374072866,0.8640194,118800.0,118790.0,0.10911188]
[1759374073373,0.0768812,118800.0,118790.0,0.48564295]
[1759374073562,0.0768812,118800.0,118790.0,0.5929361]
[1759374074376,0.008,118800.0,118790.0,0.9929361]
[1759374074581,0.008,118800.0,118790.0,1.02326947]
[1759374075282,0.37098279,118810.0,118800.0,0.0969051]
[1759374075486,0.37098279,118810.0,118800.0,0.4707461]
[1759374075782,0.3608,118810.0,118800.0,0.56321573]
[1759374076176,0.37063253,118810.0,118800.0,0.56321573]
[1759374076380,0.37063253,118810.0,118800.0,0.56521573]
[1759374076580,0.3608,118810.0,118800.0,0.56521573]
[1759374076885,0.3608,118810.0,118800.0,0.58921573]
[1759374077381,0.3608,118810.0,118800.0,2.04519973]
[1759374077579,0.3608,118810.0,118800.0,1.27339973]
[1759374077772,0.3608,118810.0,118800.0,1.87561908]
[1759374077978,0.35070229,118810.0,118800.0,1.87561908]
[1759374079479,0.35070229,118810.0,118800.0,0.997918]
[1759374079672,0.35070229,118810.0,118800.0,1.82995955]
[1759374080982,0.35070229,118810.0,118800.0,1.55447782]
[1759374081383,0.35070229,118810.0,118800.0,1.82995955]
[1759374081580,0.35070229,118810.0,118800.0,0.78271782]
[1759374081780,0.35070229,118810.0,118800.0,1.83123955]
[1759374083680,0.35070229,118810.0,118800.0,1.05819955]
[1759374083881,0.35070229,118810.0,118800.0,2.12207167]
[1759374084184,0.35070229,118810.0,118800.0,2.04671973]
[1759374084883,0.35070229,118810.0,118800.0,1.27339973]
[1759374085084,0.35070229,118810.0,118800.0,2.04667973]
[1759374085977,0.35070229,118810.0,118800.0,1.57101773]
[1759374086172,0.35070229,118810.0,118800.0,1.771198]
[1759374086378,0.35070229,118810.0,118800.0,1.84648958]
[1759374086582,0.35070229,118810.0,118800.0,2.12197131]
[1759374087086,0.35070229,118810.0,118800.0,1.34869131]
[1759374087377,0.35070229,118810.0,118800.0,2.12173131]
[1759374087982,0.34060504,118810.0,118800.0,2.12173131]
[1759374088188,0.34060504,118810.0,118800.0,1.07320958]
[1759374088485,0.34060504,118810.0,118800.0,1.84624958]
[1759374091189,0.34060504,118810.0,118800.0,1.770958]
[1759374091390,0.34060504,118810.0,118800.0,1.8311811]
[1759374091591,0.34060504,118810.0,118800.0,1.0581411]
[1759374091890,0.34060504,118810.0,118800.0,1.8308611]
[1759374092894,0.34060504,118810.0,118800.0,2.10634283]
[1759374093094,0.34060504,118810.0,118800.0,2.04611973]
[1759374093888,0.30560504,118810.0,118800.0,2.04611973]
[1759374094694,0.27060504,118810.0,118800.0,2.04595973]
[1759374094990,0.16560504,118810.0,118800.0,2.04595973]
[1759374095199,0.10871224,118810.0,118800.0,2.13909081]
[1759374096696,0.10871224,118810.0,118800.0,2.11309081]
[1759374097894,0.0986158,118810.0,118800.0,2.11309081]
[1759374098190,0.0636158,118810.0,118800.0,2.13109081]
[1759374098991,0.0286158,118810.0,118800.0,2.13109081]
[1759374099398,0.0286158,118810.0,118800.0,1.73109081]
[1759374101401,0.0286158,118810.0,118800.0,1.73141081]
[1759374102196,0.0286158,118810.0,118800.0,2.13117081]
[1759374102400,0.03579,118820.0,118810.0,0.35960983]
[1759374102695,0.01321,118820.0,118810.0,1.24405244]
[1759374102995,0.01321,118820.0,118810.0,1.32822398]
[1759374103590,0.01321,118820.0,118810.0,1.43412506]
[1759374103790,0.01321,118820.0,118810.0,1.44912506]
[1759374103990,0.01321,118820.0,118810.0,0.67652506]
[1759374104193,0.01321,118820.0,118810.0,1.44920506]
[1759374106399,0.01274846,118830.0,118820.0,0.0841209]
[1759374106602,0.01274846,118830.0,118820.0,0.35960263]
[1759374106790,0.01274846,118830.0,118820.0,0.45241772]
[1759374106995,0.01274846,118830.0,118820.0,0.53658217]
[1759374107403,0.01274846,118830.0,118820.0,0.64220672]
[1759374107996,0.00265307,118830.0,118820.0,0.64220672]
[1759374108198,0.00265307,118830.0,118820.0,1.41488672]
[1759374108599,0.00265307,118830.0,118820.0,1.42988672]
[1759374108999,0.00265307,118830.0,118820.0,1.70926217]
[1759374110097,0.00265307,118830.0,118820.0,0.93658217]
[1759374110402,0.00265307,118830.0,118820.0,1.70914217]
[1759374110603,0.00265307,118830.0,118820.0,1.70910217]
[1759374111003,0.00265307,118830.0,118820.0,1.81467582]
[1759374111195,0.00265307,118830.0,118820.0,1.81867582]
[1759374111399,0.00265307,118830.0,118820.0,1.81863582]
[1759374111596,0.00265307,118830.0,118820.0,1.81455582]
[1759374111800,0.00265307,118830.0,118820.0,1.83855582]
[1759374113004,0.00265307,118830.0,118820.0,1.83843582]
[1759374113902,0.00265307,118830.0,118820.0,1.06615582]
[1759374114102,0.00265307,118830.0,118820.0,1.83843582]
[1759374116408,0.01321,118840.0,118830.0,0.0841139]
[1759374116608,0.03465,118840.0,118830.0,1.2240157]
[1759374116907,0.03465,118840.0,118830.0,1.32115183]
[1759374117108,0.03465,118840.0,118830.0,1.4053092]
[1759374117508,0.01321,118840.0,118830.0,1.4063092]
[1759374117906,0.01321,118840.0,118830.0,1.60638434]
[1759374117907,0.00311501,118840.0,118830.0,1.60638434]
[1759374118308,0.00311501,118840.0,118830.0,1.71195799]
[1759374118705,0.00311501,118840.0,118830.0,1.73195799]
[1759374119411,0.00311501,118840.0,118830.0,1.62638434]
[1759374119806,0.00311501,118840.0,118830.0,1.70179597]
[1759374120006,0.00311501,118840.0,118830.0,1.42631424]
[1759374120304,0.00311501,118840.0,118830.0,1.70179597]
[1759374121112,0.00311501,118840.0,118830.0,1.76768588]
[1759374121412,0.00311501,118840.0,118830.0,0.71996415]
[1759374121810,0.00311501,118840.0,118830.0,1.49232415]
[1759374122004,0.02455501,118840.0,118830.0,1.49232415]
[1759374122206,0.00311501,118840.0,118830.0,1.49232415]
[1759374122711,0.00311501,118840.0,118830.0,1.49228415]
[1759374122914,0.00311501,118840.0,118830.0,1.50182861]
[1759374123713,0.00311501,118840.0,118830.0,1.77731034]
[1759374126416,0.00270569,118850.0,118840.0,0.0841068]
[1759374126617,0.00270569,118850.0,118840.0,0.74064391]
[1759374126818,0.00270569,118850.0,118840.0,0.83431477]
[1759374127215,0.00270569,118850.0,118840.0,0.91846506]
[1759374128015,0.02726142,118860.0,118850.0,0.0840997]
[1759374128216,0.02726142,118860.0,118850.0,1.20698737]
[1759374128412,0.00582142,118860.0,118850.0,1.29774085]
[1759374128612,0.00582142,118860.0,118850.0,1.38188406]
[1759374129115,0.00582142,118860.0,118850.0,1.38186478]
[1759374129419,0.00582142,118860.0,118850.0,1.32143812]
[1759374130208,0.00582142,118860.0,118850.0,1.42701177]
[1759374130418,0.0008197,118860.0,118850.0,1.42701177]
[1759374130618,0.0008197,118860.0,118850.0,0.54947812]
[1759374131220,0.0008197,118860.0,118850.0,1.32163812]
[1759374132216,0.0008197,118860.0,118850.0,1.32159812]
[1759374133216,0.0008197,118860.0,118850.0,1.42712201]
[1759374133413,0.0008197,118860.0,118850.0,1.42688201]
[1759374134219,0.0008197,118860.0,118850.0,1.77031448]
[1759374135920,0.0008197,118860.0,118850.0,1.66479059]
[1759374136321,0.0008197,118860.0,118850.0,1.77031423]
[1759374136521,0.04397915,118880.0,118870.0,0.0840855]
[1759374136822,0.04397915,118880.0,118870.0,1.3282547]
[1759374137121,0.04397915,118880.0,118870.0,1.41239083]
[1759374137316,0.04397915,118880.0,118870.0,1.33701028]
[1759374137819,0.04397915,118880.0,118870.0,1.33801028]
[1759374138417,0.04397915,118880.0,118870.0,1.02855318]
[1759374138715,0.12805765,118880.0,118870.0,1.25392478]
[1759374138917,0.12805765,118880.0,118870.0,1.27392478]
[1759374139422,0.04397915,118880.0,118870.0,1.35801058]
[1759374139621,0.12805795,118880.0,118870.0,1.35801058]
[1759374140225,0.12805795,118880.0,118870.0,1.04855348]